Cogmind - Beta 16 @@@ ROGUE MODE // 2025.10.22 @ 20:45:51 Player: ChromeKnight Result: Destroyed by 0T-JM7(R) with Subdweller Laser Performance ------------- Evolutions (0) 0 Regions Visited (2) 400 Robots Destroyed (13) 65 Value Destroyed (410) 410 Prototype IDs (0) 0 Alien Tech Used (0) 0 Bonus (0) 0 TOTAL SCORE: 875 Bonus ------- None Cogmind --------- Core Integrity 0/250 Matter 273/300 Energy 198/200 System Corruption 2% Temperature Cool (6) Movement Rolling (120) Ox1 Location -10/Subcaves Parts ------- > --- POWER (1) -------- Subdweller Power Source > --- PROPULSION (2) --- Subdweller Monowheel Subdweller Monowheel > --- UTILITY (2) ------ Medium Storage Unit > --- WEAPON (2) ------- Subdweller Beam Cannon Heavy Battle Rifle > --- INVENTORY (10) --- Light Ion Engine Flight Unit Flight Unit Small Storage Unit Machine Analyzer Makeshift Hacking Suite Dirty Datajack (20) Flamer Flamer Peak State ------------ > --- POWER ------------ Subdweller Power Source > --- PROPULSION ------- Subdweller Monowheel Subdweller Monowheel > --- UTILITY ---------- Medium Storage Unit > --- WEAPON ----------- Subdweller Beam Cannon Heavy Battle Rifle > --- INVENTORY -------- Light Ion Engine Flight Unit Flight Unit Small Storage Unit Machine Analyzer Makeshift Hacking Suite Dirty Datajack Flamer Flamer [Rating: 15] Favorites ----------- Power Ion Engine Engine Ion Engine Propulsion Light Treads Treads Light Treads Wheel Subdweller Monowheel Utility Medium Storage Unit Device Structural Scanner Storage Medium Storage Unit Weapon EM Pulse Gun Energy Gun EM Pulse Gun Energy Cannon Subdweller Beam Cannon Ballistic Gun Subdweller Machine Gun Build | -11 -10 -10 ------- Run | Yrd Mat Sub Slots Evolved . | . . . Power . | . . . Propulsion . | . . . Utility . | . . . Weapon . | . . . Parts Attached 18 | 4 4 10 Power 3 | 1 . 2 Engine 3 | 1 . 2 Core . | . . . Reactor . | . . . Propulsion 4 | 2 . 2 Treads 2 | 2 . . Leg . | . . . Wheel 2 | . . 2 Hover . | . . . Flight . | . . . Utility 3 | 1 2 . Device 1 | . 1 . Storage 2 | 1 1 . Processor . | . . . Hackware . | . . . Protection . | . . . Artifact . | . . . Weapon 8 | . 2 6 Energy Gun 4 | . 2 2 Energy Cannon 1 | . . 1 Ballistic Gun 3 | . . 3 Ballistic Cannon . | . . . Launcher . | . . . Special Weapon . | . . . Impact Weapon . | . . . Slashing Weapon . | . . . Piercing Weapon . | . . . Special Melee Weapon . | . . . Unidentified Prototypes . | . . . Corrupted Parts 1 | . 1 . System Corruption 2 | . 2 . Parts Lost 9 | . . 9 Power 1 | . . 1 Propulsion 2 | . . 2 Utility 1 | . . 1 Weapon 5 | . . 5 Highest Loss Streak 2 | . . 2 To Critical Strikes 1 | . . 1 Average Backups 4 | 1 1 6 Power . | . . . Propulsion . | . . . Utility 1 | . . 2 Weapon 1 | 1 1 1 Tool/Special . | . . . Unused Backups 9 | . . 9 Power 2 | . . 2 Propulsion 2 | . . 2 Utility 2 | . . 2 Weapon 2 | . . 2 Tool/Special 1 | . . 1 Average Slot Usage (%) 83 | . 84 83 Engine 13 | . 14 13 Treads 17 | . 28 14 Wheel 4 | . . 5 Device 6 | . . 8 Storage 14 | . 14 14 Energy Gun 16 | . 27 13 Energy Cannon 4 | . . 5 Ballistic Gun 5 | . . 7 Peak Build Rating 15 | 4 7 15 Average Rating 8 | 2 6 8 On Entrance 3 | . 4 7 Avg Prop Armor Cover (%) 6 | . . 6 Naked Turns . | . . . Heaviest Build 27 | 10 20 27 Greatest Support 40 | 40 40 40 Greatest Overweight (x) 8 | . . 8 Average Overweight (x) . | . . . Largest Inventory Capacity 10 | 8 10 10 Average Capacity 9 | 6 8 10 Most Carried 10 | 3 3 10 Average Carried 5 | 1 1 6 Final Capacity 10 | 8 10 10 Final Carried 9 | 3 2 9 Class Distribution -------------------- 81% | Mutant 18% | Scavenger-Mutant Dominant Class ---------------- Mutant | -10/Materials Mutant | -10/Subcaves Resources | -11 -10 -10 ----------- Run | Yrd Mat Sub Matter Collected 427 | 135 16 276 Remotely . | . . . Salvage Created 461 | . 16 445 Parts 36 | . 3 33 Haulers Intercepted . | . . . Recyclers Shooed 1 | . 1 . Parts Field Recycled . | . . . Retrieved Matter . | . . . Parts Self-Destructed 10 | . . 10 Prevented . | . . . Parts Restored . | . . . Kills | -11 -10 -10 ------- Run | Yrd Mat Sub Combat Hostiles Destroyed 12 | . . 12 Guns 10 | . . 10 Cannons 2 | . . 2 Classes Destroyed 4 | . 1 3 Builder 1 | . 1 . Swarmer 3 | . . 3 Sentry 1 | . . 1 Subdweller 8 | . . 8 Best Kill Streak 3 | . 1 3 Combat Bots Only 3 | . . 3 Max Kills in Single Turn 1 | . 1 1 Gunslinging . | . . . Exploded . | . . . Melee . | . . . Uniques/NPCs Destroyed . | . . . Combat | -11 -10 -10 -------- Run | Yrd Mat Sub Hostile Shots Fired 78 | . . 78 Missed 16 | . . 16 Hits 62 | . . 62 Projectile 62 | . . 62 Critical Strikes 2 | . . 2 Damage Taken 1252 | . . 1252 Core 253 | . . 253 Absorbed by Shields . | . . . Core Remaining (%) 100 | 100 . . Volleys Fired 61 | . 3 58 Largest 2 | . 2 2 Hottest 110 | . 80 110 Shots Fired 105 | . 6 99 Gun 91 | . 6 85 Cannon 14 | . . 14 Launcher . | . . . Special . | . . . Kinetic 36 | . . 36 Thermal 43 | . . 43 Explosive . | . . . Electromagnetic 26 | . 6 20 Robot Hit Streak 32 | . 3 32 Robot Miss Streak 2 | . 1 2 Penetration Max . | . . . Secondary Targets 1 | . . 1 Max Gunslinging Chain 1 | . . 1 Shots Hit Robots 72 | . 4 68 Core Hits 26 | . 2 24 Critical Kills 1 | . . 1 Critical Parts Destroyed . | . . . Critical Strikes 1 | . . 1 Destroy 1 | . . 1 Melee Attacks . | . . . Impact . | . . . Slashing . | . . . Piercing . | . . . Sneak Attacks . | . . . Combat Hostiles . | . . . Follow-up Attacks . | . . . Damage Inflicted 1261 | . 63 1198 Guns 1069 | . 63 1006 Cannons 192 | . . 192 Explosions . | . . . Melee . | . . . Ramming . | . . . Kinetic 415 | . . 415 Thermal 629 | . . 629 Explosive . | . . . Electromagnetic 217 | . 63 154 Impact . | . . . Slashing . | . . . Piercing . | . . . Highest Corruption 2 | . 2 2 Average Corruption 2 | . 2 2 Corruption Purged . | . . . Corruption Blocked . | . . . Effects 19 | . . 19 Message Errors 5 | . . 5 Matter Fused 6 | . . 6 Heat Flow Errors 2 | . . 2 Energy Discharges 3 | . . 3 Data Loss (minor) 1 | . . 1 Data Loss (major) 1 | . . 1 Misfires 1 | . . 1 Overload Shots . | . . . Overflow Damage . | . . . Projectiles . | . . . Explosions . | . . . Melee . | . . . Knockbacks . | . . . Impact . | . . . Kinetic . | . . . Secondary . | . . . Self-Inflicted Damage . | . . . Shots . | . . . Rammed . | . . . Targets Rammed . | . . . Kicked . | . . . Crushed . | . . . Highest Temperature 239 | . 18 239 Average Temperature 48 | . 12 60 Received Heat Transfer 435 | . . 435 Effects 1 | . . 1 Energy Bleed 1 | . . 1 Siege Activations . | . . . Martial Activations . | . . . Shielding Activations . | . . . Robots Disrupted . | . . . Combat Hostiles . | . . . Robots Corrupted . | . . . Combat Hostiles . | . . . Parts Fried . | . . . Impact Corruptions . | . . . Robots Melted . | . . . Combat Hostiles . | . . . Parts Melted 1 | . . 1 Heat Transferred 859 | . . 859 Parts Sabotaged . | . . . Parts Stolen . | . . . Parts Stripped . | . . . Power Chain Reactions . | . . . Alert | -11 -10 -10 ------- Run | Yrd Mat Sub Maximum Alert Level . | . . . Low Security (%) 100 | 100 100 . Level 1 . | . . . Level 2 . | . . . Level 3 . | . . . Level 4 . | . . . Level 5 . | . . . High Security . | . . . Max Security . | . . . Peak Influence 15 | . 15 . Initial . | . . . Average . | . . . Influence Increases 125 | . 20 105 Destroy 0b10 Robot/C 80 | . . 80 Destroy 0b10 Robot/NC 5 | . 5 . Destroy Leader 10 | . . 10 Disable Machine 15 | . 15 . Lose Combat Pursuer 15 | . . 15 Influence Decreases 125 | . 20 105 Time Decay 95 | . 20 75 Lost Part 30 | . . 30 Squads Dispatched 1 | . 1 . Investigation 1 | . 1 . Extermination . | . . . Reinforcement . | . . . Assault . | . . . Garrison . | . . . Intercept . | . . . Searches Triggered . | . . . Construction Impeded . | . . . Haulers Reinforced . | . . . Active Scanning Responses . | . . . Cargo Convoy Interrupts . | . . . Stealth | -11 -10 -10 --------- Run | Yrd Mat Sub Distress Signals . | . . . Communications Jammed . | . . . Distress Signals . | . . . Times Spotted 15 | . 1 14 Peak Tracking Total 3 | . 1 3 Tactical Retreats 1 | . . 1 Traps | -11 -10 -10 ------- Run | Yrd Mat Sub Traps Triggered 4 | . 1 3 Indirectly . | . . . Trap Hack Attempts . | . . . Triggered . | . . . Disarmed . | . . . Reprogrammed . | . . . Reused . | . . . Traps Extracted . | . . . Installed . | . . . Triggered . | . . . Machines | -11 -10 -10 ---------- Run | Yrd Mat Sub Machines Disabled 1 | . 1 . Max in Single Turn 1 | . 1 . Machines Repaired . | . . . Machines Dismantled . | . . . Machines Sabotaged . | . . . Overloaded Fab Kills . | . . . Hacking | -11 -10 -10 --------- Run | Yrd Mat Sub Machines Accessed 1 | . . 1 Terminals . | . . . Fabricators . | . . . Repair Stations . | . . . Recycling Units . | . . . Scanalyzers . | . . . Garrison Access . | . . . Total Hacks 4 | . . 4 Successful 4 | . . 4 Failed . | . . . Catastrophic . | . . . Database Lockouts . | . . . Manual . | . . . Terminals . | . . . Fabricators . | . . . Repair Stations . | . . . Recycling Units . | . . . Scanalyzers . | . . . Garrison Access . | . . . Terminal Hacks 4 | . . 4 Record 4 | . . 4 Fabricator Hacks . | . . . Repair Station Hacks . | . . . Recycling Unit Hacks . | . . . Scanalyzer . | . . . Garrison Access Hacks . | . . . Unauthorized Hacks . | . . . Terminals . | . . . Fabricators . | . . . Repair Stations . | . . . Recycling Units . | . . . Scanalyzers . | . . . Garrison Access . | . . . Data Cores Recovered . | . . . Used . | . . . Hacking Detections . | . . . Full Trace Events . | . . . Feedback Events . | . . . Feedback Blocked . | . . . Robot Schematics Acquired . | . . . Robots Built . | . . . Authchips . | . . . Time . | . . . Total Robot Build Rating . | . . . Part Schematics Acquired . | . . . Parts Built . | . . . Authchips . | . . . Time . | . . . Total Part Build Rating . | . . . Part Studies Acquired . | . . . Parts Repaired . | . . . Time . | . . . Parts Recycled . | . . . Recycled Matter . | . . . Retrieved Matter . | . . . Retrieved Components . | . . . Parts Scanalyzed . | . . . Part Schematics Acquired . | . . . Parts Damaged . | . . . Bothacking | -11 -10 -10 ------------ Run | Yrd Mat Sub Used RIF Installer . | . . . Robots Hacked . | . . . Non-combat . | . . . Combat . | . . . Robot Hacks Applied . | . . . Relay Couplers Released . | . . . Fabnet Peak Effective % . | . . . Robots Rewired . | . . . Allies Hacked . | . . . Hacks Repelled . | . . . Allies | -11 -10 -10 -------- Run | Yrd Mat Sub Total Allies . | . . . Largest Group . | . . . Highest-Rated Group . | . . . Highest-Rated Ally . | . . . Total Orders . | . . . Ally Attacks . | . . . Total Damage . | . . . Kills . | . . . Allies Corrupted . | . . . Allies Melted . | . . . Intel | -11 -10 -10 ------- Run | Yrd Mat Sub Active Infowar (turns) 1101 | . 3 1098 Structural 1101 | . 3 1098 Robot Analysis Total . | . . . Derelict Logs Recovered 2 | . . 2 Drone Launches . | . . . Drone Recoveries . | . . . Exploration | -11 -10 -10 ------------- Run | Yrd Mat Sub Turns Passed 2342 | 61 471 1810 Spaces Moved 1017 | 38 87 892 Core 81 | 7 . 74 Treads 616 | 31 87 498 Legs . | . . . Wheels 320 | . . 320 Hover . | . . . Flight . | . . . Fastest Speed 50 | 50 160 110 Average Speed 168 | 139 160 170 Slowest Speed 450 | 160 160 450 Overloaded Moves . | . . . Propulsion Burnouts . | . . . Robots Hopped . | . . . Potential Cave-ins . | . . . Cave-ins Triggered . | . . . Exploration Rate (%) 24 | 4 12 57 Regions Visited 2 Branch Regions 1 Pre-discovered Areas . | . . . Known Exits Taken . | . . . Unknown Exits Taken 2 | 1 1 . Scrap Searched . | . . . Spaces Dug . | . . . Terrain Destroyed . | . . . Melee . | . . . Projectile . | . . . AOE . | . . . Terrain Rammed . | . . . Walls Destroyed . | . . . Machines Disabled . | . . . Actions | -11 -10 -10 --------- Run | Yrd Mat Sub Total 1535 | 44 412 1079 Wait 421 | . 317 104 Move 1015 | 37 86 892 Hop . | . . . Pick Up 16 | 3 2 11 Fast Attach 10 | 4 . 6 Attach 5 | . 3 2 Detach . | . . . Swap 3 | . 1 2 Drop 4 | . . 4 Fire 61 | . 3 58 Melee . | . . . Ram . | . . . Kick . | . . . Crush . | . . . Escape Stasis . | . . . Rewire . | . . . Trap . | . . . Miscellaneous . | . . . Route ------- -11/Scrapyard -10/Materials -10/Subcaves (discovered 1 exit: [*Mat]) History --------- Turn | Location | Event 3 | -11/Scrapyard | Discovered new exit (range 16) 62 | -11/Scrapyard | Entered Materials 173 | -10/Materials | Discovered new exit (range 9) 313 | -10/Materials | Build established: Mutant 533 | -10/Materials | Entered Subcaves 534 | -10/Subcaves | Approached by a straggling Scientist 881 | -10/Subcaves | Visited Clippyterm 886 | -10/Subcaves | Learned Factory stockpile data 1003 | -10/Subcaves | Disturbed a concealed Subdweller 1060 | -10/Subcaves | Shifting Twisted Machinery released Flamer 1067 | -10/Subcaves | Learned Materials emergency access door positions 1085 | -10/Subcaves | Shifting Twisted Machinery released Mak. Hacking Suite 1313 | -10/Subcaves | Shifting Twisted Machinery released Sub. Laser 1544 | -10/Subcaves | Core integrity fell below 50% 1925 | -10/Subcaves | Discovered new exit (range 5) 2097 | -10/Subcaves | Core integrity fell below 20% 2202 | -10/Subcaves | Build established: Scavenger-Mutant 2233 | -10/Subcaves | A swath of the cavern ceiling suddenly collapsed 2343 | -10/Subcaves | Destroyed by 0T-JM7(R) with Subdweller Laser Last Messages --------------- destroying it. 02028_ Dropped Sub. Power Source. 02029_ Acquired Flight Unit. 02074_ System corrupted: Matter fused (-6). 02096_ 7Y-CZ5(R) destroyed. 02099_ 9E-905(R) destroyed. 02102_ Acquired 18 matter. 02105_ Acquired Sub. Monowheel. 02107_ Acquired 10 matter. 02233_ 60 Matter crushed. A swath of the cavern ceiling suddenly collapses. 02261_ Sub. Monowheel shoots sparks and powers down. 02276_ 3 RHS:3XKCD#9EH7,7J|UU&>LQ/0JSQ 02331_ Sub. Beam Cannon shoots sparks and powers down. 02338_ Sub. Machine Gun shoots sparks and powers down. 02339_ Broken Sub. Machine Gun destroyed. Map ----- +----------------------------------------------------+ | ??????????????????????????????????????????##### | | ??????????????????????????????????????????##### | | ??????????????????????????????????????????## | | ?????####?????????????????????????????????## # | | ????## ##????????????????????????????????######## | | ????# ##???????????????????????????????######## | | ????# ###????????????????????????????????????? | | ????# #????????????????????????????????????? | | ????# #????????????????????????????????????? | | ????## ##?#####??????????###????????????????? | | ?????#### ### ############ ##???????????????? | | ????????# ## ####????????????? | | ????##### ### ##???????????? | | ????# ### ####?# #???????????? | | ????# ###### ###????# ##??????????? | | ????# ##### ### ##?????## ###????????? | | ????## ##???#!% ######## #????????? | | ?????## #????#%&[ # ## ##????????? | | ?????## #????#*& ## ####?????????? | | ????## ##????# ### ###????????????? | | ????# #?????# #### #### #??????????????? | | ????# ##????## ### ### #??????????????? | | ????## ####### ## # ##??????????????? | | ?????# ## ## # ###??###??????????? | | ????## ## ### " ####"####???????? | | ???## ######" @##"""" ""### #???????? | | ???# ##??#""" R####"""####"""###???????? | | ???# ##?#"""" ####"""#?##""###????????? | | ???### %###"""""# ##""""#?##"""##????????? | | ?????## % """ " """"""#?#""#""##???????? | | ??????# ### %% "" "" """####"###"#???????? | | ??????## #?### " %##"## ###""####"#???????? | | ???????###???##############" ##?##"#?#"##???????? | | ????????????????????????##=" ##??#""#####????????? | | ???????????????????????## !% #?#####"##??????????? | | ???????????????????????#" ## #??#""##?????????? | | ???????????????????????# ! #?### #?????????? | | ???????????????????????#]% #?# #?????????? | | ???????????????????????# * #### ##?????????? | | ???????????????????????# ##?# #??????????? | | ???????????????????????# ###??# #??????????? | | ??????????????????????## ##??## ##??????????? | | ??????????????????????# #??# ##???????????? | | ??????????????????????## % #??# #????????????? | | ???????????????????????# =[ #?## #????????????? | | ???????????????????????# ### ##???????????? | | ????######?????????????# """"" ##??????????? | | ???## #????????###### " " #### #??????????? | | #??# #???????## # " "###??# #??????????? | | #?## #??????## " " ##????# #?#####????? | +----------------------------------------------------+ Best States ------------- Heat Dissipation 25 Energy Generation 15 Energy Capacity 250 Matter Stores 300 Matter Capacity 300 Sight Range 16 Terrain Scan Density 10 Evasion (%) 40 Recoil Reduction 2 Item Schematics ----------------- None Robot Schematics ------------------ None Fabricated ------------ Nothing Repaired ---------- Nothing Studied --------- None Alien Tech Used ----------------- None Achievements -------------- A Problem For Future Me Challenges ------------ None Game ------ Seed CarbideCoilWell Manual? 0 Play Time 00:10:35 Cumulative 468.1 hours Start 2025.10.22 @ 20:38:04 End 2025.10.22 @ 20:45:51 Sessions 1 Manual Loads 0 Difficulty Rogue Special Mode None Game No. 799 Rogue 644 Adventurer 148 Explorer 7 Win Type - Total 22 Types 17/1/3/1/0/0/0/0/0/0 Lore% 63 Gallery% 75 Achievement% 45 Wizard Run 0 Options --------- Layout 1 ASCII 0 Keyboard 0 Movement Numpad Keybinds 0 Fullscreen 2 Font 24/Smallcaps Map View 50x40 Zoom Use 0% Tactical HUD 1 Map Filters NONE Filters NONE Steam 1 RUN: d812bcd2-4c8c-4999-9f10-e8877de07ea1